Cogmind - Beta 14 @@@ ROGUE MODE // 2024.08.19 @ 13:56:19 Player: PersmaticCoreSerial_K4E2 Result: Destroyed self with Grenade Launcher Performance ------------- Evolutions (0) 0 Regions Visited (4) 800 Robots Destroyed (32) 160 Value Destroyed (509) 509 Prototype IDs (23) 460 Alien Tech Used (0) 0 Bonus (300) 300 TOTAL SCORE: 2229 Bonus ------- Aligned with FarCom 300 Cogmind --------- Core Integrity 0/250 Matter 215/300 Energy 160/160 System Corruption 1% Temperature Cool (0) Movement Rolling (140) Ox4 Location -9/Mines Parts ------- > --- POWER (1) -------- Light Nuclear Core > --- PROPULSION (2) --- Wheel > --- UTILITY (2) ------ High-capacity Storage Unit Launcher Guidance Computer > --- WEAPON (2) ------- Grenade Launcher Makeshift Spear > --- INVENTORY (20) --- Light Nuclear Core Wheel Wheel Wheel Wheel High-capacity Storage Unit High-capacity Storage Unit Lightpack 2.0 Large Matter Pod (150) Core Shielding Power Shielding Utility Shielding Shock Absorption System Beam Cannon Heavy Assault Rifle Grenade Launcher Rocket Launcher Signal Generator Peak State ------------ > --- POWER ------------ Light Nuclear Core > --- PROPULSION ------- Wheel Wheel > --- UTILITY ---------- High-capacity Storage Unit Launcher Guidance Computer > --- WEAPON ----------- Grenade Launcher Makeshift Spear > --- INVENTORY -------- Light Nuclear Core Wheel Wheel Wheel Wheel High-capacity Storage Unit High-capacity Storage Unit Lightpack 2.0 Large Matter Pod Core Shielding Power Shielding Utility Shielding Shock Absorption System Tractor Beam Beam Cannon Heavy Assault Rifle Grenade Launcher [Rating: 20] Favorites ----------- Power Light Nuclear Core Engine Light Ion Engine Power Core Light Nuclear Core Propulsion Wheel Wheel Wheel Utility High-capacity Storage Unit Device Sensor Array Storage High-capacity Storage Unit Processor Launcher Guidance Computer Protection Improved Light Armor Plating Weapon Grenade Launcher Energy Gun Medium Laser Energy Cannon Beam Cannon Launcher Grenade Launcher Piercing Weapon Makeshift Spear Build | -11 -10 -10 -10 -9 ------- Run | Yrd Mat Min Exi Min Slots Evolved . | . . . . . Power . | . . . . . Propulsion . | . . . . . Utility . | . . . . . Weapon . | . . . . . Parts Attached 24 | 7 4 11 2 . Power 4 | 1 1 2 . . Engine 3 | 1 1 1 . . Core 1 | . . 1 . . Reactor . | . . . . . Propulsion 4 | 2 . 2 . . Treads . | . . . . . Leg . | . . . . . Wheel 4 | 2 . 2 . . Hover . | . . . . . Flight . | . . . . . Utility 9 | 2 2 3 2 . Device 2 | 1 1 . . . Storage 4 | 1 1 1 1 . Processor 1 | . . . 1 . Hackware . | . . . . . Protection 2 | . . 2 . . Artifact . | . . . . . Weapon 7 | 2 1 4 . . Energy Gun 3 | 2 . 1 . . Energy Cannon 1 | . . 1 . . Ballistic Gun . | . . . . . Ballistic Cannon . | . . . . . Launcher 2 | . 1 1 . . Special Weapon . | . . . . . Impact Weapon . | . . . . . Slashing Weapon . | . . . . . Piercing Weapon 1 | . . 1 . . Special Melee Weapon . | . . . . . Unidentified Prototypes . | . . . . . Parts Lost 5 | . . 4 . 1 Power . | . . . . . Propulsion 3 | . . 2 . 1 Utility 1 | . . 1 . . Weapon 1 | . . 1 . . Highest Loss Streak 3 | . . 3 . 1 To Critical Strikes . | . . . . . Average Slot Usage (%) 96 | . 99 98 96 95 Engine 4 | . 13 10 . . Core 9 | . . 3 14 14 Wheel 26 | . 28 27 28 23 Device 3 | . 13 6 . . Storage 14 | . 14 14 14 14 Processor 4 | . . . 1 14 Protection 4 | . . 6 9 . Energy Gun 4 | . 25 5 . . Energy Cannon 1 | . . 5 . . Launcher 11 | . 2 8 14 14 Piercing Weapon 10 | . . 7 14 14 Peak Build Rating 20 | 9 9 16 20 20 Average Rating 14 | 6 8 10 16 19 On Entrance 10 | . 9 7 16 20 Naked Turns . | . . . . . Heaviest Build 53 | 14 19 35 53 50 Greatest Support 32 | 32 32 32 20 20 Greatest Overweight (x) 4 | . . 1 2 4 Average Overweight (x) 1 | . . . 1 2 Largest Inventory Capacity 20 | 8 10 15 20 20 Average Capacity 16 | 7 8 14 18 20 Most Carried 20 | 8 9 15 20 20 Average Carried 15 | 5 8 13 17 19 Final Capacity 20 | 8 10 15 20 20 Final Carried 20 | 8 9 15 19 20 Class Distribution -------------------- 53% | Scavenger-Mutant 46% | Mutant Dominant Class ---------------- Mutant | -10/Materials Mutant | -10/Mines Scavenger-Mutant | -10/Exiles Scavenger-Mutant | -9/Mines Resources | -11 -10 -10 -10 -9 ----------- Run | Yrd Mat Min Exi Min Matter Collected 714 | 365 76 215 10 48 Remotely . | . . . . . Salvage Created 798 | 162 293 334 . 9 Parts 65 | 17 11 30 . 7 Haulers Intercepted 1 | . 1 . . . Recyclers Shooed 4 | . 4 . . . Parts Field Recycled . | . . . . . Retrieved Matter . | . . . . . Parts Self-Destructed . | . . . . . Prevented . | . . . . . Kills | -11 -10 -10 -10 -9 ------- Run | Yrd Mat Min Exi Min Combat Hostiles Destroyed 18 | . 2 12 . 4 Melee 4 | . . 4 . . Guns 4 | . 2 2 . . Cannons 1 | . . 1 . . AOE 9 | . . 5 . 4 Classes Destroyed 9 | 3 3 3 . . Worker 3 | 1 1 1 . . Builder 1 | . . 1 . . Tunneler 5 | 4 . 1 . . Hauler 1 | . 1 . . . Recycler 3 | 1 2 . . . Watcher 1 | . 1 . . . Swarmer 10 | . . 6 . 4 Grunt 6 | . 2 4 . . Sentry 2 | . . 2 . . Best Kill Streak 5 | 3 4 5 . 4 Combat Bots Only 4 | . 1 3 . 4 Max Kills in Single Turn 2 | 2 2 2 . 2 Gunslinging . | . . . . . Exploded 2 | . . 2 . 2 Melee 1 | . . 1 . . Uniques/NPCs Destroyed . | . . . . . Combat | -11 -10 -10 -10 -9 -------- Run | Yrd Mat Min Exi Min Hostile Shots Fired 63 | . 18 41 . 4 Missed 13 | . 1 12 . . Damage Taken 707 | . 231 423 . 53 Core 250 | . 56 157 . 37 Absorbed by Shields . | . . . . . Core Remaining (%) 100 | 100 . . . . Volleys Fired 79 | 10 32 29 . 8 Largest 2 | 2 2 2 . 1 Hottest 90 | 90 90 80 . 30 Shots Fired 124 | 18 64 34 . 8 Gun 93 | 18 61 14 . . Cannon 8 | . . 8 . . Launcher 23 | . 3 12 . 8 Special . | . . . . . Kinetic . | . . . . . Thermal 101 | 18 61 22 . . Explosive 23 | . 3 12 . 8 Electromagnetic . | . . . . . Robot Hit Streak 11 | 5 6 11 . 1 Robot Miss Streak 3 | 2 3 3 . . Penetration Max . | . . . . . Secondary Targets . | . . . . . Shots Hit Robots 78 | 12 36 29 . 1 Core Hits 47 | 7 12 22 . 6 Critical Kills . | . . . . . Critical Parts Destroyed . | . . . . . Critical Strikes 1 | . . 1 . . Impale 1 | . . 1 . . Melee Attacks 11 | . . 11 . . Impact . | . . . . . Slashing . | . . . . . Piercing 11 | . . 11 . . Sneak Attacks . | . . . . . Combat Hostiles . | . . . . . Follow-up Attacks . | . . . . . Damage Inflicted 2064 | 150 534 1107 . 273 Guns 643 | 150 418 75 . . Cannons 140 | . . 140 . . Explosions 1070 | . 113 684 . 273 Melee 208 | . . 208 . . Ramming 3 | . 3 . . . Kinetic . | . . . . . Thermal 783 | 150 418 215 . . Explosive 1070 | . 113 684 . 273 Electromagnetic . | . . . . . Impact . | . . . . . Slashing . | . . . . . Piercing 208 | . . 208 . . Highest Corruption 1 | . 1 1 1 1 Average Corruption 1 | . 1 1 1 1 Corruption Purged . | . . . . . Corruption Blocked . | . . . . . Effects 22 | . 1 4 4 13 Message Errors 6 | . . 1 1 4 Matter Fused 5 | . 1 . 1 3 Heat Flow Errors 5 | . . 2 1 2 Energy Discharges 3 | . . 1 . 2 Data Loss (major) 1 | . . . 1 . Alerts 2 | . . . . 2 Overload Shots . | . . . . . Overflow Damage 63 | . . 63 . . Projectiles 6 | . . 6 . . Explosions 57 | . . 57 . . Melee . | . . . . . Knockbacks . | . . . . . Impact . | . . . . . Kinetic . | . . . . . Secondary . | . . . . . Self-Inflicted Damage 131 | . 41 67 . 23 Shots 5 | . 1 2 . 2 Rammed 1 | . 1 . . . Targets Rammed 1 | . 1 . . . Kicked . | . . . . . Crushed . | . . . . . Highest Temperature 274 | 60 270 247 274 165 Average Temperature 95 | 31 111 86 138 83 Received Heat Transfer 264 | . 102 162 . . Effects 1 | . . 1 . . Interference 1 | . . 1 . . Siege Activations . | . . . . . Robots Corrupted . | . . . . . Combat Hostiles . | . . . . . Parts Fried . | . . . . . Impact Corruptions . | . . . . . Robots Melted . | . . . . . Combat Hostiles . | . . . . . Parts Melted 3 | 1 2 . . . Heat Transferred 2019 | 397 1104 518 . . Parts Sabotaged . | . . . . . Parts Stolen . | . . . . . Parts Stripped . | . . . . . Power Chain Reactions . | . . . . . Alert | -11 -10 -10 -10 -9 ------- Run | Yrd Mat Min Exi Min Peak Influence 276 | 30 199 276 . 96 Initial 77 | . 19 77 . . Average 79 | 15 106 146 . 23 Maximum Alert Level 1 | . . 1 . . Low Security (%) 87 | 100 100 64 . 100 Level 1 12 | . . 35 . . Level 2 . | . . . . . Level 3 . | . . . . . Level 4 . | . . . . . Level 5 . | . . . . . High Security . | . . . . . Max Security . | . . . . . Squads Dispatched 1 | . 1 . . . Investigation 1 | . 1 . . . Extermination . | . . . . . Reinforcement . | . . . . . Assault . | . . . . . Garrison . | . . . . . Intercept . | . . . . . Searches Triggered . | . . . . . Construction Impeded . | . . . . . Haulers Reinforced . | . . . . . Active Scanning Responses . | . . . . . Cargo Convoy Interrupts . | . . . . . Stealth | -11 -10 -10 -10 -9 --------- Run | Yrd Mat Min Exi Min Distress Signals 1 | . 1 . . . Communications Jammed . | . . . . . Distress Signals . | . . . . . Times Spotted 25 | . 6 12 . 7 Peak Tracking Total 5 | . 5 3 . 4 Tactical Retreats 2 | . 1 . . 1 Traps | -11 -10 -10 -10 -9 ------- Run | Yrd Mat Min Exi Min Traps Triggered . | . . . . . Indirectly . | . . . . . Trap Hack Attempts . | . . . . . Triggered . | . . . . . Disarmed . | . . . . . Reprogrammed . | . . . . . Reused . | . . . . . Traps Extracted . | . . . . . Installed . | . . . . . Triggered . | . . . . . Machines | -11 -10 -10 -10 -9 ---------- Run | Yrd Mat Min Exi Min Machines Disabled 1 | . . 1 . . Max in Single Turn 1 | . . 1 . . Machines Repaired . | . . . . . Machines Dismantled . | . . . . . Machines Sabotaged . | . . . . . Overloaded Fab Kills . | . . . . . Hacking | -11 -10 -10 -10 -9 --------- Run | Yrd Mat Min Exi Min Machines Accessed 7 | . 3 . 4 . Terminals 1 | . 1 . . . Fabricators . | . . . . . Repair Stations 1 | . 1 . . . Recycling Units 1 | . 1 . . . Scanalyzers . | . . . . . Garrison Access . | . . . . . Total Hacks 33 | . 6 . 27 . Successful 29 | . 2 . 27 . Failed 4 | . 4 . . . Catastrophic 1 | . 1 . . . Database Lockouts . | . . . . . Manual 7 | . 6 . 1 . Terminals 1 | . 1 . . . Fabricators . | . . . . . Repair Stations 3 | . 3 . . . Recycling Units 2 | . 2 . . . Scanalyzers . | . . . . . Garrison Access . | . . . . . Terminal Hacks 27 | . . . 27 . Record 26 | . . . 26 . Derelict Proto ID Bank 1 | . . . 1 . Fabricator Hacks . | . . . . . Repair Station Hacks . | . . . . . Recycling Unit Hacks . | . . . . . Scanalyzer . | . . . . . Garrison Access Hacks . | . . . . . Unauthorized Hacks 2 | . 2 . . . Terminals . | . . . . . Fabricators . | . . . . . Repair Stations 1 | . 1 . . . Mechanics 1 | . 1 . . . Recycling Units 1 | . 1 . . . Tunnel 1 | . 1 . . . Scanalyzers . | . . . . . Garrison Access . | . . . . . Data Cores Recovered . | . . . . . Used . | . . . . . Hacking Detections 2 | . 2 . . . Full Trace Events . | . . . . . Feedback Events . | . . . . . Feedback Blocked . | . . . . . Robot Schematics Acquired . | . . . . . Robots Built . | . . . . . Authchips . | . . . . . Time . | . . . . . Total Robot Build Rating . | . . . . . Part Schematics Acquired . | . . . . . Parts Built . | . . . . . Authchips . | . . . . . Time . | . . . . . Total Part Build Rating . | . . . . . Parts Repaired . | . . . . . Time . | . . . . . Parts Recycled . | . . . . . Recycled Matter . | . . . . . Retrieved Matter . | . . . . . Retrieved Components . | . . . . . Parts Scanalyzed . | . . . . . Part Schematics Acquired . | . . . . . Parts Damaged . | . . . . . Bothacking | -11 -10 -10 -10 -9 ------------ Run | Yrd Mat Min Exi Min Used RIF Installer . | . . . . . Robots Hacked . | . . . . . Non-combat . | . . . . . Combat . | . . . . . Robot Hacks Applied . | . . . . . Relay Couplers Released . | . . . . . Fabnet Peak Effective % . | . . . . . Robots Rewired . | . . . . . Allies Hacked . | . . . . . Hacks Repelled . | . . . . . Allies | -11 -10 -10 -10 -9 -------- Run | Yrd Mat Min Exi Min Total Allies 2 | . . 2 . . Largest Group 2 | . . 2 2 . Highest-Rated Group 45 | . . 45 45 . Highest-Rated Ally 31 | . . 31 31 . Total Orders . | . . . . . Ally Attacks . | . . . . . Total Damage . | . . . . . Kills . | . . . . . Allies Corrupted . | . . . . . Allies Melted . | . . . . . Intel | -11 -10 -10 -10 -9 ------- Run | Yrd Mat Min Exi Min Robot Analysis Total . | . . . . . Derelict Logs Recovered 5 | . . 3 . 2 Drone Launches . | . . . . . Drone Recoveries . | . . . . . Exploration | -11 -10 -10 -10 -9 ------------- Run | Yrd Mat Min Exi Min Turns Passed 2876 | 139 324 761 749 903 Spaces Moved 2070 | 98 186 613 712 461 Core 20 | 20 . . . . Treads . | . . . . . Legs . | . . . . . Wheels 2050 | 78 186 613 712 461 Hover . | . . . . . Flight . | . . . . . Fastest Speed 50 | 50 100 95 95 110 Average Speed 105 | 89 100 96 104 123 Slowest Speed 140 | 100 100 100 110 140 Overloaded Moves . | . . . . . Propulsion Burnouts . | . . . . . Robots Hopped . | . . . . . Cave-ins Triggered . | . . . . . Time Travels 1 | . . . 1 . Exploration Rate (%) 59 | 4 28 95 93 77 Regions Visited 4 Branch Regions 3 Pre-discovered Areas 1 | . 1 . . . Known Exits Taken . | . . . . . Unknown Exits Taken 4 | 1 1 1 1 . Scrap Searched 2 | . . 1 . 1 Spaces Dug 28 | . . . . 28 Terrain Destroyed 182 | . 23 102 . 57 Melee . | . . . . . Projectile . | . . . . . AOE 182 | . 23 102 . 57 Terrain Rammed . | . . . . . Walls Destroyed . | . . . . . Machines Disabled . | . . . . . Actions | -11 -10 -10 -10 -9 --------- Run | Yrd Mat Min Exi Min Total 2637 | 130 261 735 721 790 Wait 396 | . 32 46 . 318 Move 2066 | 97 185 612 711 461 Hop . | . . . . . Pick Up 41 | 15 3 16 5 2 Fast Attach 5 | 1 1 3 . . Attach 12 | 6 1 4 1 . Detach . | . . . . . Swap 7 | . 2 4 1 . Drop 19 | 1 4 10 3 1 Fire 79 | 10 32 29 . 8 Melee 11 | . . 11 . . Ram 1 | . 1 . . . Kick . | . . . . . Crush . | . . . . . Escape Stasis . | . . . . . Rewire . | . . . . . Trap . | . . . . . Miscellaneous . | . . . . . Route ------- -11/Scrapyard -10/Materials -10/Mines (discovered 2 exits: [*Mat] / *Exi) -10/Exiles (discovered 2 exits: [*Min x2]) -9/Mines History --------- Turn | Location | Event 14 | -11/Scrapyard | Discovered new exit (range 15) 140 | -11/Scrapyard | Entered Materials 321 | -10/Materials | Build established: Mutant 348 | -10/Materials | Discovered new exit (range 15) 464 | -10/Materials | Entered Mines 482 | -10/Mines | Assembled infested the area 706 | -10/Mines | Learned Materials emergency access door positions 783 | -10/Mines | Lost 3 parts (2n1w) 809 | -10/Mines | A weapon hastily lodged in a ceiling crevice suddenly fell to the ground 816 | -10/Mines | Learned Materials security intel 832 | -10/Mines | Discovered new exit (range 12) 833 | -10/Mines | Core integrity fell below 50% 1068 | -10/Mines | Learned 2 Materials zone layouts 1076 | -10/Mines | Core integrity fell below 20% 1166 | -10/Mines | Build established: Scavenger-Mutant 1209 | -10/Mines | Discovered new exit (range 5) 1225 | -10/Mines | Entered Exiles 1225 | -10/Exiles | Accompanied by 2 allies 1244 | -10/Exiles | Discovered new exit (range 15) 1255 | -10/Exiles | Led the pair of lost Derelicts to a safe place 1258 | -10/Exiles | Met 8R-AWN 1274 | -10/Exiles | Met EX-HEX 1332 | -10/Exiles | Met EX-DEC 1357 | -10/Exiles | Visited The Gauntlet 1537 | -10/Exiles | Discovered new exit (range 10) 1621 | -10/Exiles | Met EX-BIN 1636 | -10/Exiles | Aligned with FarCom system 1638 | -10/Exiles | Given EX-Vault access code 1740 | -10/Exiles | Opened EX-Vault 1746 | -10/Exiles | Found Chronowheel 1747 | -10/Exiles | Activated Chronowheel 1747 | -10/Exiles | Spacetime reconverged on an earlier point 1749 | -10/Exiles | Found Lightpack 2.0 1774 | -10/Exiles | Warned to stay clear of 0b10 Research branches 1974 | -10/Exiles | Left Exiles lab with Lightpack 2.0 1974 | -10/Exiles | Entered Mines 1975 | -9/Mines | Met a Derelict testing a Signal Generator 1977 | -9/Mines | Found Signal Generator 2415 | -9/Mines | Received a Rocket Launcher from a helpful Derelict 2632 | -9/Mines | Learned Materials terminal intel 2681 | -9/Mines | Learned Materials emergency access door positions 2858 | -9/Mines | Build established: Mutant 2877 | -9/Mines | Destroyed self with Grenade Launcher Last Messages --------------- going to lend you mine." 02415_ B2-W9E(g) slips back into the shadows. 02419_ Dropped Tractor Beam. 02420_ Acquired Rocket Launcher. 02441_ System corrupted: Matter fused (-10). 02570_ S-10 Pest destroyed. 02570_ Wheel destroyed. 02572_ S-10 Pest destroyed. 02619_ ZNGG:ENCJ47GWX7OEDHLIBXQNN:O3SKTKC:XT 02632_ Acquired derelict log, extracted data. Data stored: Materials terminal intel. 02666_ AS1 02777_ M6MFYMI/CN Map ----- +----------------------------------------------------+ | ?????????????????## ## ###??? | | ??????????????????### ##?? | | ????????????????????## ### #?? | | ?????????????????????#### ####?## #?? | | ???????????####?????????# #????## #?? | | ??????????## ##????????# #????# ##?? | | ?????##???# ##???????# ###### ##??? | | ????## #### ######### ## #???? | | ????# # ## ## ##### ##???? | | ????# #?# ## %#???####????? | | ????# #?# #### #### #???????????? | | ????# # #### #??# #### #???????????? | | ????####### #?## # #???????????? | | ???????## #?# ##??????????? | | ???????# ########## ##?????????? | | ??????## #???????# #?????????? | | ?????## #??????## #?????##### | | ?????# ##????### #?????# | | ?????# ##?????# #?????# | | ?????# ######## t##??????# [ | | ????## ##??????? | | ???## t r ####???? | | ???# ######## ##???? | | ???# #???### ### #???? | | ???## g#??## uu ####?### ##???? | | ????### #??# @ ###??????## ##??? | | ??????# #??## #?????????# ##### | | ??????# #??# ??????????## | | ??????# #?# #???????????## ##### | | ??????# #?# #???????????## #???# | | ??????# #?# #???????##### #???? | | ??????# #?# ####??????## #???? | | ??????# ?#####???###???## ##### | | ??????####????????## #?## ## | | ??????????????????# ## ##### ### | | ??????????????????# ##???# #?? | | ??????????????????# #????# ### | | ??????????????????## ## ##??## ## | | ???????????????????# #### #??# | | ???????????????????# #??# #??## | | ???????????????????## ##??# #???### | | ????????????????????## #???## #?????### | | ?????????????????????# ##???# ##??????? | | ?????????????????????# #??## #??????? | | ?????????????????????# #??# #??##### | | ?????????????????????# ##??# ##?## | | ?????????????????????## ##???# #??# | | ??????????????????????####????# ##?# | | ??????????????????????????????# #### | | ??????????????????????????????# #### | +----------------------------------------------------+ Best States ------------- Heat Dissipation 25 Energy Generation 14 Energy Capacity 265 Matter Stores 300 Matter Capacity 300 Sight Range 16 Robot Scan Range 14 Terrain Scan Range 16 Terrain Scan Density 10 Armor Coverage 150 Evasion (%) 50 Launcher Accuracy 20 Item Schematics ----------------- None Robot Schematics ------------------ None Fabricated ------------ Nothing Alien Tech Used ----------------- None Achievements -------------- None Challenges ------------ None Game ------ Seed ScanReinforcedNeutralizer Manual? 0 Play Time 00:34:15 Cumulative 144.4 hours Start 2024.08.19 @ 13:01:10 End 2024.08.19 @ 13:56:19 Sessions 1 Manual Loads 0 Difficulty Rogue Special Mode None Game No. 40 Rogue 6 Adventurer 34 Explorer 0 Win Type - Total 2 Types 2/0/0/0/0/0/0/0/0 Lore% 21 Gallery% 50 Achievement% 49 Wizard Run 0 Options --------- Layout 2 ASCII 0 Keyboard 0 Movement Mouse Keybinds 0 Fullscreen 1 Font 48/Smallcaps Map View 50x44 Zoom Use 0% Tactical HUD 1 Map Filters NONE Filters NONE Steam 1 RUN: 817efc34-d9fe-4ea2-95b6-29db7f927e1e